[Event "*** Titled Tuesday Blitz"]
[Site "Chess.com"]
[Date "2020.11.10"]
[Round "9"]
[White "juancruzarias"]
[Black "northridgehawk"]
[Result "1-0"]
[WhiteElo "2594"]
[BlackElo "2297"]
[TimeControl "180+1"]
[EndTime "11:52:33 PST"]
[Termination "juancruzarias won by checkmate"]

1. d4 {[%clk 0:03:00.9]} 1... Nf6 {[%clk 0:02:58.6]} 2. Bg5 {[%clk 0:03:01.4]}
2... Ne4 {[%clk 0:02:58.1]} 3. Bh4 {[%clk 0:03:01.2]} 3... c5 {[%clk 0:02:58.3]}
4. f3 {[%clk 0:03:01.5]} 4... Nf6 {[%clk 0:02:54.4]} 5. d5 {[%clk 0:03:00.1]}
5... Qb6 {[%clk 0:02:53.1]} 6. Nd2 {[%clk 0:02:48.8]} 6... Qxb2 {[%clk
0:02:49.8]} 7. e4 {[%clk 0:02:46.6]} 7... Qb6 {[%clk 0:02:45.5]} 8. Rb1 {[%clk
0:02:36.1]} 8... Qd8 {[%clk 0:02:39.4]} 9. Nc4 {[%clk 0:02:32.6]} 9... d6 {[%clk
0:02:38.5]} 10. Bd3 {[%clk 0:02:23.8]} 10... Nbd7 {[%clk 0:02:37.6]} 11. Ne2
{[%clk 0:02:22.6]} 11... g6 {[%clk 0:02:31.2]} 12. O-O {[%clk 0:02:20.8]} 12...
Bg7 {[%clk 0:02:31]} 13. a4 {[%clk 0:02:19.3]} 13... O-O {[%clk 0:02:20.5]} 14.
f4 {[%clk 0:02:16.3]} 14... Qc7 {[%clk 0:02:15.2]} 15. Nc3 {[%clk 0:02:02.8]}
15... b6 {[%clk 0:02:13.4]} 16. Qe1 {[%clk 0:01:56.8]} 16... Bb7 {[%clk
0:02:07.3]} 17. Kh1 {[%clk 0:01:31.3]} 17... Rfe8 {[%clk 0:02:05.8]} 18. f5
{[%clk 0:01:30.6]} 18... a6 {[%clk 0:02:00.6]} 19. fxg6 {[%clk 0:01:28.4]} 19...
hxg6 {[%clk 0:01:58.6]} 20. Bg3 {[%clk 0:01:12.4]} 20... Nh5 {[%clk 0:01:53.2]}
21. Bf2 {[%clk 0:01:11.5]} 21... Rab8 {[%clk 0:01:34.7]} 22. Be3 {[%clk
0:01:04]} 22... Ba8 {[%clk 0:01:31.3]} 23. Qf2 {[%clk 0:01:03.9]} 23... Nhf6
{[%clk 0:01:28.4]} 24. h3 {[%clk 0:01:02.9]} 24... e6 {[%clk 0:01:24.6]} 25. Bg5
{[%clk 0:00:57.5]} 25... exd5 {[%clk 0:01:21.2]} 26. exd5 {[%clk 0:00:58.4]}
26... Re7 {[%clk 0:01:16]} 27. Qh4 {[%clk 0:00:58]} 27... Qd8 {[%clk 0:01:04.5]}
28. Rxf6 {[%clk 0:00:55]} 28... Nxf6 {[%clk 0:01:01.9]} 29. Rf1 {[%clk
0:00:54.3]} 29... b5 {[%clk 0:00:29.7]} 30. axb5 {[%clk 0:00:50.8]} 30... axb5
{[%clk 0:00:30.6]} 31. Nd2 {[%clk 0:00:31.7]} 31... c4 {[%clk 0:00:27.8]} 32.
Rxf6 {[%clk 0:00:24.9]} 32... cxd3 {[%clk 0:00:17.9]} 33. Rf1 {[%clk 0:00:24.9]}
33... f6 {[%clk 0:00:16.6]} 34. Bxf6 {[%clk 0:00:24.9]} 34... Bxf6 {[%clk
0:00:17.5]} 35. Qxf6 {[%clk 0:00:25.5]} 35... Rg7 {[%clk 0:00:16.2]} 36. Qd4
{[%clk 0:00:20.5]} 36... dxc2 {[%clk 0:00:15.7]} 37. Nde4 {[%clk 0:00:19.9]}
37... Kh7 {[%clk 0:00:07.8]} 38. Nf6+ {[%clk 0:00:19.2]} 38... Qxf6 {[%clk
0:00:05.7]} 39. Qxf6 {[%clk 0:00:19.1]} 39... g5 {[%clk 0:00:04.8]} 40. Ne4
{[%clk 0:00:18.6]} 40... b4 {[%clk 0:00:04]} 41. Nxg5+ {[%clk 0:00:18.7]} 41...
Kg8 {[%clk 0:00:03.6]} 42. Qe6+ {[%clk 0:00:18.4]} 42... Kh8 {[%clk 0:00:03.8]}
43. Qh6+ {[%clk 0:00:18.6]} 43... Kg8 {[%clk 0:00:03.1]} 44. Ne6 {[%clk
0:00:19.2]} 44... Rxg2 {[%clk 0:00:01.2]} 45. Kxg2 {[%clk 0:00:18.6]} 45...
Bxd5+ {[%clk 0:00:02.1]} 46. Kg3 {[%clk 0:00:18.6]} 46... c1=Q {[%clk
0:00:01.5]} 47. Qg7# {[%clk 0:00:17.3]} 1-0

[Event "*** Titled Tuesday Blitz"]
[Site "Chess.com"]
[Date "2020.11.10"]
[Round "9"]
[White "HanSchut"]
[Black "A-S-00"]
[Result "0-1"]
[WhiteElo "2208"]
[BlackElo "2339"]
[TimeControl "180+1"]
[EndTime "11:52:33 PST"]
[Termination "A-S-00 won by resignation"]

1. e4 {[%clk 0:03:00.9]} 1... c5 {[%clk 0:02:57.1]} 2. Nf3 {[%clk 0:03:00.7]}
2... d6 {[%clk 0:02:57.1]} 3. d4 {[%clk 0:03:00.9]} 3... cxd4 {[%clk 0:02:57.5]}
4. Nxd4 {[%clk 0:03:01.8]} 4... Nf6 {[%clk 0:02:57]} 5. f3 {[%clk 0:03:02.4]}
5... g6 {[%clk 0:02:56.8]} 6. c4 {[%clk 0:03:02.8]} 6... Bg7 {[%clk 0:02:56.8]}
7. Be3 {[%clk 0:03:03.6]} 7... O-O {[%clk 0:02:56.8]} 8. Qd2 {[%clk 0:03:04.2]}
8... Nc6 {[%clk 0:02:56.7]} 9. Nc3 {[%clk 0:03:04.6]} 9... Bd7 {[%clk
0:02:53.4]} 10. Rc1 {[%clk 0:03:04]} 10... Rc8 {[%clk 0:02:52.8]} 11. Be2 {[%clk
0:03:04.4]} 11... Ne5 {[%clk 0:02:44.9]} 12. b3 {[%clk 0:03:04.5]} 12... Qc7
{[%clk 0:02:35.6]} 13. O-O {[%clk 0:03:01.1]} 13... Qb8 {[%clk 0:02:34.4]} 14.
Rfd1 {[%clk 0:02:56.6]} 14... Rfd8 {[%clk 0:02:29.3]} 15. h3 {[%clk 0:02:56.6]}
15... h5 {[%clk 0:02:26.1]} 16. f4 {[%clk 0:02:53.7]} 16... Nc6 {[%clk
0:02:25.2]} 17. Bf3 {[%clk 0:02:54.2]} 17... Bh6 {[%clk 0:01:50.9]} 18. Qf2
{[%clk 0:02:10.5]} 18... Nxd4 {[%clk 0:01:40.6]} 19. Rxd4 {[%clk 0:02:11.1]}
19... e5 {[%clk 0:01:36.6]} 20. Rdd1 {[%clk 0:01:57.2]} 20... exf4 {[%clk
0:01:32.5]} 21. Bxa7 {[%clk 0:01:55.8]} 21... Qa8 {[%clk 0:01:31.2]} 22. Bd4
{[%clk 0:01:54.7]} 22... Bg7 {[%clk 0:01:29.3]} 23. a4 {[%clk 0:01:49.3]} 23...
Bc6 {[%clk 0:01:19.7]} 24. Ne2 {[%clk 0:01:31.7]} 24... Re8 {[%clk 0:01:11.5]}
25. Nxf4 {[%clk 0:01:21.2]} 25... Nxe4 {[%clk 0:01:06.8]} 26. Bxe4 {[%clk
0:01:06.5]} 26... Bxe4 {[%clk 0:01:00.5]} 27. Bxg7 {[%clk 0:01:05.8]} 27... Kxg7
{[%clk 0:01:00.3]} 28. Rxd6 {[%clk 0:00:58.7]} 28... Qa5 {[%clk 0:00:40]} 29.
Rf1 {[%clk 0:00:47.1]} 29... Rc7 {[%clk 0:00:23]} 30. Nd5 {[%clk 0:00:17.3]}
30... Bxd5 {[%clk 0:00:22.1]} 31. Qf6+ {[%clk 0:00:17]} 31... Kg8 {[%clk
0:00:21.8]} 32. Rxd5 {[%clk 0:00:17.5]} 32... Qb4 {[%clk 0:00:20.3]} 33. Rfd1
{[%clk 0:00:14.2]} 33... Qxb3 {[%clk 0:00:16.4]} 34. Rd8 {[%clk 0:00:14.5]}
34... Qe3+ {[%clk 0:00:15.4]} 35. Kh1 {[%clk 0:00:13.8]} 35... Rc8 {[%clk
0:00:14.4]} 36. R8d7 {[%clk 0:00:12.3]} 36... Qe6 {[%clk 0:00:13]} 37. Qxe6
{[%clk 0:00:10.1]} 37... Rxe6 {[%clk 0:00:13]} 38. Rxb7 {[%clk 0:00:09.7]} 38...
Rxc4 {[%clk 0:00:12.8]} 39. Rf1 {[%clk 0:00:08.2]} 39... Rc2 {[%clk 0:00:10]}
40. Rfxf7 {[%clk 0:00:06.9]} 40... Ree2 {[%clk 0:00:09.2]} 41. Kh2 {[%clk
0:00:07.4]} 41... Rxg2+ {[%clk 0:00:08.8]} 42. Kh1 {[%clk 0:00:07.2]} 42... Rh2+
{[%clk 0:00:08.8]} 43. Kg1 {[%clk 0:00:07.8]} 43... Rhd2 {[%clk 0:00:08.2]} 44.
Rf1 {[%clk 0:00:03.1]} 44... Rg2+ {[%clk 0:00:07.4]} 0-1

[Event "*** Titled Tuesday Blitz"]
[Site "Chess.com"]
[Date "2020.11.10"]
[Round "9"]
[White "IMRosen"]
[Black "atalz0"]
[Result "1-0"]
[WhiteElo "2566"]
[BlackElo "2408"]
[TimeControl "180+1"]
[EndTime "11:52:36 PST"]
[Termination "IMRosen won on time"]

1. d4 {[%clk 0:03:00.9]} 1... Nf6 {[%clk 0:02:57.4]} 2. Bf4 {[%clk 0:03:00.6]}
2... e6 {[%clk 0:02:55.5]} 3. e3 {[%clk 0:03:00.9]} 3... d5 {[%clk 0:02:55.7]}
4. Nd2 {[%clk 0:03:00.7]} 4... Bd6 {[%clk 0:02:55.8]} 5. Bg3 {[%clk 0:03:00.7]}
5... O-O {[%clk 0:02:55.3]} 6. Ngf3 {[%clk 0:03:00.6]} 6... c5 {[%clk
0:02:55.5]} 7. c3 {[%clk 0:03:00.7]} 7... Nc6 {[%clk 0:02:55.2]} 8. Bb5 {[%clk
0:02:59.4]} 8... Be7 {[%clk 0:02:53.2]} 9. dxc5 {[%clk 0:02:46.7]} 9... Bxc5
{[%clk 0:02:51.1]} 10. Bh4 {[%clk 0:02:45.2]} 10... Be7 {[%clk 0:02:48.6]} 11.
Bd3 {[%clk 0:02:33.5]} 11... e5 {[%clk 0:02:45.2]} 12. e4 {[%clk 0:01:47.4]}
12... Nxe4 {[%clk 0:02:34]} 13. Bxe7 {[%clk 0:01:41.2]} 13... Qxe7 {[%clk
0:02:32.2]} 14. Nxe4 {[%clk 0:01:32.6]} 14... dxe4 {[%clk 0:02:33.1]} 15. Bxe4
{[%clk 0:01:33.5]} 15... f5 {[%clk 0:01:14.9]} 16. Bd5+ {[%clk 0:01:30.7]} 16...
Be6 {[%clk 0:01:14.7]} 17. Bxe6+ {[%clk 0:01:15]} 17... Qxe6 {[%clk 0:01:15.6]}
18. Ng5 {[%clk 0:01:15.6]} 18... Qc4 {[%clk 0:01:10]} 19. Qb3 {[%clk 0:01:08.9]}
19... Na5 {[%clk 0:01:03.3]} 20. Qxc4+ {[%clk 0:01:04.1]} 20... Nxc4 {[%clk
0:01:04.2]} 21. O-O-O {[%clk 0:01:04.7]} 21... Rad8 {[%clk 0:00:48]} 22. Ne6
{[%clk 0:01:04.8]} 22... Rxd1+ {[%clk 0:00:47.6]} 23. Rxd1 {[%clk 0:01:05.7]}
23... Re8 {[%clk 0:00:47.5]} 24. Nc7 {[%clk 0:00:55.5]} 24... Rc8 {[%clk
0:00:46.8]} 25. Nd5 {[%clk 0:00:55.8]} 25... Kf7 {[%clk 0:00:44.9]} 26. b3
{[%clk 0:00:46.7]} 26... Na5 {[%clk 0:00:41.3]} 27. c4 {[%clk 0:00:37.7]} 27...
b5 {[%clk 0:00:39]} 28. Nc3 {[%clk 0:00:23.9]} 28... bxc4 {[%clk 0:00:33.6]} 29.
b4 {[%clk 0:00:21.3]} 29... Nc6 {[%clk 0:00:31]} 30. Rd7+ {[%clk 0:00:21.6]}
30... Ke6 {[%clk 0:00:29]} 31. Rxg7 {[%clk 0:00:20.6]} 31... Nxb4 {[%clk
0:00:28.7]} 32. Rxa7 {[%clk 0:00:06.4]} 32... Nd3+ {[%clk 0:00:27.8]} 33. Kc2
{[%clk 0:00:06.6]} 33... Nxf2 {[%clk 0:00:23.4]} 34. Rxh7 {[%clk 0:00:06.3]}
34... e4 {[%clk 0:00:21.5]} 35. Rh6+ {[%clk 0:00:06.2]} 35... Ke5 {[%clk
0:00:21.2]} 36. Ne2 {[%clk 0:00:04.6]} 36... Ng4 {[%clk 0:00:19.1]} 37. Ra6
{[%clk 0:00:03.6]} 37... e3 {[%clk 0:00:17.3]} 38. Ra5+ {[%clk 0:00:02.8]} 38...
Ke4 {[%clk 0:00:14.6]} 39. Ng3+ {[%clk 0:00:02.7]} 39... Kd4 {[%clk 0:00:11.4]}
40. Nxf5+ {[%clk 0:00:03.3]} 40... Ke4 {[%clk 0:00:11.6]} 41. Ng3+ {[%clk
0:00:04.2]} 41... Kd4 {[%clk 0:00:10.2]} 42. Ne2+ {[%clk 0:00:04.8]} 42... Ke4
{[%clk 0:00:10.3]} 43. h3 {[%clk 0:00:03.7]} 43... Ne5 {[%clk 0:00:05.5]} 44.
Nc3+ {[%clk 0:00:03.5]} 44... Kf4 {[%clk 0:00:05.8]} 45. g3+ {[%clk 0:00:03.5]}
45... Kxg3 {[%clk 0:00:03.9]} 46. Rxe5 {[%clk 0:00:03.2]} 46... Kf2 {[%clk
0:00:02.9]} 47. Nd1+ {[%clk 0:00:03.2]} 1-0

[Event "*** Titled Tuesday Blitz"]
[Site "Chess.com"]
[Date "2020.11.10"]
[Round "9"]
[White "GalperinPlaton"]
[Black "albi1999"]
[Result "0-1"]
[WhiteElo "2863"]
[BlackElo "2584"]
[TimeControl "180+1"]
[EndTime "11:52:37 PST"]
[Termination "albi1999 won on time"]

1. Nf3 {[%clk 0:02:57.9]} 1... d5 {[%clk 0:02:56.9]} 2. e3 {[%clk 0:02:58]} 2...
Nf6 {[%clk 0:02:56.3]} 3. c4 {[%clk 0:02:58.5]} 3... e6 {[%clk 0:02:53.1]} 4. b3
{[%clk 0:02:58.2]} 4... Bd6 {[%clk 0:02:46.9]} 5. Bb2 {[%clk 0:02:58.4]} 5...
O-O {[%clk 0:02:46.5]} 6. Nc3 {[%clk 0:02:57.4]} 6... b6 {[%clk 0:02:45.6]} 7.
g4 {[%clk 0:02:54.4]} 7... Bb7 {[%clk 0:02:41.5]} 8. g5 {[%clk 0:02:53.4]} 8...
Ne4 {[%clk 0:02:34.5]} 9. Rg1 {[%clk 0:02:53.4]} 9... Nd7 {[%clk 0:02:28]} 10.
h4 {[%clk 0:02:52]} 10... f5 {[%clk 0:02:09.2]} 11. gxf6 {[%clk 0:02:14.3]}
11... Ndxf6 {[%clk 0:02:07.8]} 12. Nxe4 {[%clk 0:02:12.3]} 12... dxe4 {[%clk
0:02:06.3]} 13. Ng5 {[%clk 0:02:12.5]} 13... Qe7 {[%clk 0:01:59.4]} 14. Bh3
{[%clk 0:02:11.8]} 14... e5 {[%clk 0:01:55.7]} 15. Qc2 {[%clk 0:01:51.6]} 15...
Kh8 {[%clk 0:01:47.8]} 16. Rc1 {[%clk 0:01:46.8]} 16... c5 {[%clk 0:01:16.4]}
17. Bf5 {[%clk 0:01:37.6]} 17... h6 {[%clk 0:01:10.1]} 18. Rh1 {[%clk
0:01:31.3]} 18... Nh5 {[%clk 0:00:46.3]} 19. Bxe4 {[%clk 0:01:27]} 19... hxg5
{[%clk 0:00:41.2]} 20. hxg5 {[%clk 0:01:23.2]} 20... g6 {[%clk 0:00:39.8]} 21.
Bd5 {[%clk 0:00:42.6]} 21... Bxd5 {[%clk 0:00:37.8]} 22. cxd5 {[%clk 0:00:43.5]}
22... Kg7 {[%clk 0:00:33.1]} 23. f4 {[%clk 0:00:42.9]} 23... Ng3 {[%clk
0:00:26.6]} 24. Rh3 {[%clk 0:00:38.1]} 24... Nf5 {[%clk 0:00:26.2]} 25. Qe4
{[%clk 0:00:35.9]} 25... Rae8 {[%clk 0:00:26.1]} 26. Ke2 {[%clk 0:00:32.3]}
26... Rh8 {[%clk 0:00:23.7]} 27. Rch1 {[%clk 0:00:25]} 27... Rxh3 {[%clk
0:00:19.8]} 28. Rxh3 {[%clk 0:00:25.9]} 28... Kg8 {[%clk 0:00:17.9]} 29. Rh6
{[%clk 0:00:16.7]} 29... Qf7 {[%clk 0:00:11.8]} 30. Kf3 {[%clk 0:00:09.4]} 30...
Nxh6 {[%clk 0:00:11.4]} 31. gxh6 {[%clk 0:00:10.3]} 31... Qf5 {[%clk 0:00:11.3]}
32. d3 {[%clk 0:00:05.2]} 32... Qxe4+ {[%clk 0:00:09.3]} 33. dxe4 {[%clk
0:00:06.1]} 33... exf4 {[%clk 0:00:10.2]} 34. exf4 {[%clk 0:00:06.4]} 34... Kh7
{[%clk 0:00:10.6]} 35. e5 {[%clk 0:00:06.5]} 35... Bf8 {[%clk 0:00:10.9]} 36.
Ke4 {[%clk 0:00:06.1]} 36... Kxh6 {[%clk 0:00:10.7]} 37. f5 {[%clk 0:00:06.1]}
37... gxf5+ {[%clk 0:00:10.7]} 38. Kxf5 {[%clk 0:00:07]} 38... Kg7 {[%clk
0:00:11]} 39. e6+ {[%clk 0:00:04.6]} 39... Kg8 {[%clk 0:00:11.5]} 40. Be5 {[%clk
0:00:04.8]} 40... b5 {[%clk 0:00:09.6]} 41. d6 {[%clk 0:00:04.6]} 41... c4
{[%clk 0:00:09.5]} 42. bxc4 {[%clk 0:00:03.5]} 42... bxc4 {[%clk 0:00:10.4]} 43.
d7 {[%clk 0:00:04.1]} 43... Ra8 {[%clk 0:00:09]} 44. Bf6 {[%clk 0:00:02.1]}
44... Bb4 {[%clk 0:00:05.4]} 0-1

[Event "*** Titled Tuesday Blitz"]
[Site "Chess.com"]
[Date "2020.11.10"]
[Round "9"]
[White "Atousa1"]
[Black "Nikolaj_6"]
[Result "0-1"]
[WhiteElo "2412"]
[BlackElo "2586"]
[TimeControl "180+1"]
[EndTime "11:52:41 PST"]
[Termination "Nikolaj_6 won by resignation"]

1. e4 {[%clk 0:03:00.9]} 1... c5 {[%clk 0:02:59.5]} 2. Nf3 {[%clk 0:02:59]} 2...
e6 {[%clk 0:02:59.7]} 3. d4 {[%clk 0:02:56.6]} 3... cxd4 {[%clk 0:02:59.9]} 4.
Nxd4 {[%clk 0:02:57.5]} 4... Nc6 {[%clk 0:03:00.1]} 5. Nc3 {[%clk 0:02:56.5]}
5... a6 {[%clk 0:03:00.1]} 6. Nxc6 {[%clk 0:02:54.1]} 6... bxc6 {[%clk
0:02:59.8]} 7. Bd3 {[%clk 0:02:54.5]} 7... d5 {[%clk 0:02:59.8]} 8. Qf3 {[%clk
0:02:54]} 8... Nf6 {[%clk 0:02:59.4]} 9. Qg3 {[%clk 0:02:48.9]} 9... g6 {[%clk
0:02:55.1]} 10. O-O {[%clk 0:02:40.4]} 10... Bg7 {[%clk 0:02:47.1]} 11. Bg5
{[%clk 0:02:06.9]} 11... h6 {[%clk 0:02:33.4]} 12. Bxf6 {[%clk 0:01:54.2]} 12...
Qxf6 {[%clk 0:02:29]} 13. Qd6 {[%clk 0:01:51.7]} 13... Bd7 {[%clk 0:02:26.7]}
14. exd5 {[%clk 0:01:48.4]} 14... cxd5 {[%clk 0:02:23.1]} 15. Bxa6 {[%clk
0:01:35.7]} 15... Qe7 {[%clk 0:02:15.5]} 16. Qxe7+ {[%clk 0:01:26]} 16... Kxe7
{[%clk 0:02:16.4]} 17. Bd3 {[%clk 0:01:13.7]} 17... Rhb8 {[%clk 0:02:11]} 18.
Nd1 {[%clk 0:01:13.8]} 18... Bxb2 {[%clk 0:02:09.9]} 19. Nxb2 {[%clk 0:01:13.8]}
19... Rxb2 {[%clk 0:02:10.8]} 20. a3 {[%clk 0:01:12.1]} 20... Bb5 {[%clk
0:02:03.1]} 21. Bxb5 {[%clk 0:00:53.4]} 21... Rxb5 {[%clk 0:02:02.6]} 22. Ra2
{[%clk 0:00:54]} 22... Ra4 {[%clk 0:02:00.7]} 23. Rfa1 {[%clk 0:00:51.2]} 23...
d4 {[%clk 0:01:55.6]} 24. Kf1 {[%clk 0:00:51]} 24... Re5 {[%clk 0:01:54.6]} 25.
f3 {[%clk 0:00:48.5]} 25... Kd6 {[%clk 0:01:54.4]} 26. Rb1 {[%clk 0:00:44.7]}
26... Rc5 {[%clk 0:01:49.7]} 27. Rb4 {[%clk 0:00:40.2]} 27... Rxb4 {[%clk
0:01:47.5]} 28. axb4 {[%clk 0:00:41.1]} 28... Rb5 {[%clk 0:01:48]} 29. Ra7
{[%clk 0:00:30]} 29... f5 {[%clk 0:01:45.4]} 30. Rg7 {[%clk 0:00:29.7]} 30... g5
{[%clk 0:01:45.3]} 31. Rg6 {[%clk 0:00:29.6]} 31... Rxb4 {[%clk 0:01:43.8]} 32.
Ke2 {[%clk 0:00:28.2]} 32... Rb1 {[%clk 0:01:34.9]} 33. Rxh6 {[%clk 0:00:27.8]}
33... Rg1 {[%clk 0:01:34.2]} 34. g3 {[%clk 0:00:27.8]} 34... Rg2+ {[%clk
0:01:28.6]} 35. Kd3 {[%clk 0:00:28]} 35... Ke5 {[%clk 0:01:28.8]} 36. Rh8 {[%clk
0:00:18.9]} 36... Rf2 {[%clk 0:01:28.2]} 37. f4+ {[%clk 0:00:16.7]} 37... gxf4
{[%clk 0:01:29.1]} 38. gxf4+ {[%clk 0:00:17.1]} 38... Rxf4 {[%clk 0:01:27.7]}
39. h4 {[%clk 0:00:17.2]} 39... Rf3+ {[%clk 0:01:27.4]} 40. Ke2 {[%clk
0:00:17.6]} 40... Rc3 {[%clk 0:01:24]} 41. Kd2 {[%clk 0:00:17.4]} 41... Rh3
{[%clk 0:01:23.9]} 42. h5 {[%clk 0:00:17.7]} 42... Kf4 {[%clk 0:01:23.5]} 43. h6
{[%clk 0:00:17.5]} 43... e5 {[%clk 0:01:23.9]} 44. h7 {[%clk 0:00:17.9]} 44...
e4 {[%clk 0:01:19.6]} 45. Ke2 {[%clk 0:00:16.2]} 45... Rh2+ {[%clk 0:01:19.5]}
46. Kf1 {[%clk 0:00:15.4]} 46... e3 {[%clk 0:01:14.3]} 47. Kg1 {[%clk 0:00:14]}
47... Rh6 {[%clk 0:01:10.2]} 48. Kg2 {[%clk 0:00:12.6]} 48... Rg6+ {[%clk
0:01:08.2]} 49. Kf1 {[%clk 0:00:12.6]} 49... Rg7 {[%clk 0:01:07.2]} 50. Ke2
{[%clk 0:00:11.5]} 50... Rd7 {[%clk 0:01:02.6]} 51. Kd3 {[%clk 0:00:11.6]} 51...
Re7 {[%clk 0:00:55.2]} 52. Ke2 {[%clk 0:00:11.6]} 52... Rc7 {[%clk 0:00:53.5]}
53. Kd3 {[%clk 0:00:12]} 53... Rd7 {[%clk 0:00:53.5]} 54. Ke2 {[%clk 0:00:12.2]}
54... Rg7 {[%clk 0:00:47.2]} 55. Rd8 {[%clk 0:00:12]} 55... Rxh7 {[%clk
0:00:42.8]} 56. Rxd4+ {[%clk 0:00:12.1]} 56... Ke5 {[%clk 0:00:43]} 57. Rd8
{[%clk 0:00:12.1]} 57... Rh3 {[%clk 0:00:33.9]} 58. Re8+ {[%clk 0:00:10.1]}
58... Kf4 {[%clk 0:00:33.7]} 59. c4 {[%clk 0:00:10]} 59... Rh2+ {[%clk
0:00:33.8]} 60. Kd3 {[%clk 0:00:09.5]} 60... Rd2+ {[%clk 0:00:33.5]} 61. Kc3
{[%clk 0:00:09.9]} 61... Rd1 {[%clk 0:00:33.6]} 62. c5 {[%clk 0:00:09.9]} 62...
Kf3 {[%clk 0:00:32.9]} 63. c6 {[%clk 0:00:06.9]} 63... f4 {[%clk 0:00:31]} 64.
c7 {[%clk 0:00:06.7]} 64... Rc1+ {[%clk 0:00:30.8]} 65. Kd3 {[%clk 0:00:07]}
65... Rxc7 {[%clk 0:00:30.9]} 0-1

[Event "*** Titled Tuesday Blitz"]
[Site "Chess.com"]
[Date "2020.11.10"]
[Round "9"]
[White "vladimirssvesnikovs"]
[Black "eljanov"]
[Result "1/2-1/2"]
[WhiteElo "2346"]
[BlackElo "2770"]
[TimeControl "180+1"]
[EndTime "11:52:42 PST"]
[Termination "Game drawn - insufficient material"]

1. e4 {[%clk 0:02:59.1]} 1... c6 {[%clk 0:02:58.2]} 2. d4 {[%clk 0:02:58.8]}
2... d5 {[%clk 0:02:57.4]} 3. exd5 {[%clk 0:02:59.3]} 3... cxd5 {[%clk
0:02:57.4]} 4. c3 {[%clk 0:02:59.8]} 4... Bf5 {[%clk 0:02:54.7]} 5. Bf4 {[%clk
0:02:56.1]} 5... e6 {[%clk 0:02:52.5]} 6. Bd3 {[%clk 0:02:56.1]} 6... Bxd3
{[%clk 0:02:49.7]} 7. Qxd3 {[%clk 0:02:57]} 7... Nc6 {[%clk 0:02:48.8]} 8. Nd2
{[%clk 0:02:54.4]} 8... Nf6 {[%clk 0:02:42.7]} 9. Ngf3 {[%clk 0:02:43.9]} 9...
Nh5 {[%clk 0:02:41.6]} 10. Be5 {[%clk 0:02:34.8]} 10... f6 {[%clk 0:02:28.5]}
11. Bg3 {[%clk 0:02:33.2]} 11... Qd7 {[%clk 0:02:16.5]} 12. O-O {[%clk 0:02:30]}
12... Nxg3 {[%clk 0:02:12]} 13. hxg3 {[%clk 0:02:29.1]} 13... g5 {[%clk
0:02:12.5]} 14. Rfe1 {[%clk 0:02:26.7]} 14... O-O-O {[%clk 0:02:10.3]} 15. b4
{[%clk 0:01:34]} 15... Kb8 {[%clk 0:02:02.6]} 16. b5 {[%clk 0:01:24.6]} 16...
Na5 {[%clk 0:02:02.2]} 17. Re2 {[%clk 0:01:21.3]} 17... Bd6 {[%clk 0:01:43.8]}
18. Rae1 {[%clk 0:01:19.8]} 18... Rhe8 {[%clk 0:01:40]} 19. g4 {[%clk
0:01:08.1]} 19... Rc8 {[%clk 0:01:38.9]} 20. a4 {[%clk 0:00:59.3]} 20... Qf7
{[%clk 0:01:33.3]} 21. g3 {[%clk 0:00:46.6]} 21... h5 {[%clk 0:01:07.8]} 22.
gxh5 {[%clk 0:00:44.1]} 22... Qxh5 {[%clk 0:01:07.9]} 23. Kg2 {[%clk 0:00:42.3]}
23... Rh8 {[%clk 0:01:05.3]} 24. Ng1 {[%clk 0:00:22.8]} 24... g4 {[%clk
0:00:41.7]} 25. Rxe6 {[%clk 0:00:20.4]} 25... Qh1+ {[%clk 0:00:37.3]} 26. Kf1
{[%clk 0:00:20.4]} 26... Rh2 {[%clk 0:00:37.4]} 27. Qf5 {[%clk 0:00:18.1]} 27...
Bxg3 {[%clk 0:00:25.2]} 28. R1e2 {[%clk 0:00:11]} 28... Qg2+ {[%clk 0:00:20.6]}
29. Ke1 {[%clk 0:00:11.2]} 29... Qxg1+ {[%clk 0:00:21]} 30. Nf1 {[%clk
0:00:11.7]} 30... Bxf2+ {[%clk 0:00:10.6]} 31. Rxf2 {[%clk 0:00:10.5]} 31...
Rxf2 {[%clk 0:00:10.5]} 32. Qxf2 {[%clk 0:00:08.9]} 32... Qxf2+ {[%clk
0:00:10.8]} 33. Kxf2 {[%clk 0:00:09.8]} 33... Rxc3 {[%clk 0:00:09.6]} 34. Ne3
{[%clk 0:00:09]} 34... g3+ {[%clk 0:00:08.4]} 35. Kg2 {[%clk 0:00:07.6]} 35...
Ra3 {[%clk 0:00:02.8]} 36. Nxd5 {[%clk 0:00:07.1]} 36... Kc8 {[%clk 0:00:03.3]}
37. Nxf6 {[%clk 0:00:04.5]} 37... Rxa4 {[%clk 0:00:02.5]} 38. d5 {[%clk
0:00:04.9]} 38... Nc4 {[%clk 0:00:02.4]} 39. d6 {[%clk 0:00:04.6]} 39... Nxd6
{[%clk 0:00:02.7]} 40. Rxd6 {[%clk 0:00:04.8]} 40... Rb4 {[%clk 0:00:03.1]} 41.
Rd5 {[%clk 0:00:04.9]} 41... a6 {[%clk 0:00:03.1]} 42. Kxg3 {[%clk 0:00:05.2]}
42... Rxb5 {[%clk 0:00:03]} 43. Rxb5 {[%clk 0:00:04.9]} 43... axb5 {[%clk
0:00:03.3]} 44. Kf4 {[%clk 0:00:05.8]} 44... Kc7 {[%clk 0:00:03]} 45. Nd5+
{[%clk 0:00:06.5]} 45... Kc6 {[%clk 0:00:03.4]} 46. Ke4 {[%clk 0:00:07.2]} 46...
Kc5 {[%clk 0:00:03.8]} 47. Ne3 {[%clk 0:00:07.2]} 47... b4 {[%clk 0:00:04.1]}
48. Kd3 {[%clk 0:00:07.9]} 48... b5 {[%clk 0:00:04.6]} 49. Kc2 {[%clk
0:00:08.5]} 49... b3+ {[%clk 0:00:05]} 50. Kxb3 {[%clk 0:00:08.9]} 50... Kd4
{[%clk 0:00:05.9]} 51. Nc2+ {[%clk 0:00:09.4]} 51... Ke4 {[%clk 0:00:05.7]} 52.
Kb4 {[%clk 0:00:10.3]} 52... Kf5 {[%clk 0:00:05.5]} 53. Kxb5 {[%clk 0:00:11.2]}
1/2-1/2